fUST/lending_fUST_20250723
["ID","MTS","AMOUNT","RATE_DAILY","PERIOD"]
[374106065,1753208403282,-152.8,0.000259,31]
[374106066,1753208403319,-152.8,0.000259,31]
[374106067,1753208403357,-152.8,0.000259,31]
[374106068,1753208403393,-152.8,0.000259,31]
[374106069,1753208403431,-152.8,0.000259,31]
[374106070,1753208403470,-152.8,0.000259,31]
[374106071,1753208403507,-152.8,0.000259,31]
[374106072,1753208403543,-152.8,0.000259,31]
[374106073,1753208403578,-152.8,0.000259,31]
[374106074,1753208403611,-152.8,0.000259,31]
[374106075,1753208403646,-152.8,0.000259,31]
[374106076,1753208403681,-152.8,0.000259,31]
[374106077,1753208403715,-152.8,0.000259,31]
[374106078,1753208403752,-152.8,0.000259,31]
[374106079,1753208403787,-152.8,0.000259,31]
[374106080,1753208403817,-152.8,0.000259,31]
[374106081,1753208403843,-5623.20418721,0.00026,30]
[374106082,1753208403869,-526.07605158,0.00026,30]
[374106083,1753208403899,-152.8,0.000263,31]
[374106084,1753208403928,-152.8,0.000263,31]
[374106085,1753208403959,-152.8,0.000263,31]
[374106086,1753208403986,-152.8,0.000263,31]
[374106087,1753208404199,-152.8,0.000263,31]
[374106088,1753208404239,-152.8,0.000263,31]
[374106089,1753208404270,-152.8,0.000263,31]
[374106090,1753208404298,-152.8,0.000263,31]
[374106091,1753208404342,-152.8,0.000263,31]
[374106092,1753208404374,-152.8,0.000263,31]
[374106093,1753208404405,-152.8,0.000263,31]
[374106094,1753208404440,-152.8,0.000263,31]
[374106095,1753208404472,-152.8,0.000263,31]
[374106096,1753208404505,-152.8,0.000263,31]
[374106097,1753208404535,-152.8,0.000263,31]
[374106098,1753208404563,-152.8,0.000263,31]
[374106099,1753208404594,-152.8,0.000263,31]
[374106100,1753208404624,-152.8,0.000263,31]
[374106101,1753208404653,-152.8,0.000263,31]
[374106102,1753208404683,-152.8,0.000263,31]
[374106103,1753208404714,-152.8,0.000263,31]
[374106104,1753208404743,-152.8,0.000263,31]
[374106105,1753208404768,-215.0,0.000263,30]
[374106106,1753208404795,-200.0,0.00026384,120]
[374106107,1753208404822,-200.0,0.000265,120]
[374106108,1753208404848,-200.0,0.00026592,30]
[374106109,1753208404874,-200.0,0.00026592,30]
[374106110,1753208404903,-152.8,0.000266,31]
[374106111,1753208404932,-152.8,0.000266,31]
[374106112,1753208404962,-152.8,0.000266,31]
[374106113,1753208404990,-152.8,0.000266,31]
[374106114,1753208405019,-152.8,0.000266,31]
[374106115,1753208405046,-152.8,0.000266,31]
[374106116,1753208405074,-152.8,0.000266,31]
[374106117,1753208405103,-152.8,0.000266,31]
[374106118,1753208405136,-152.8,0.000266,31]
[374106119,1753208405168,-152.8,0.000266,31]
[374106120,1753208405202,-152.8,0.000266,31]
[374106121,1753208405231,-2000.0,0.00027,60]
[374106122,1753208405255,-366.83532484,0.00027,30]
[374106123,1753208405281,-200.0,0.00027,120]
[374106124,1753208405306,-14990.34397432,0.00027,50]
[374106125,1753208405330,-500.0,0.00027,30]
[374106126,1753208405356,-642.46481254,0.00027,30]
[374106127,1753208405382,-1000.0,0.0002712,30]
[374106128,1753208405409,-1761.02909996,0.00027397,30]
[374106129,1753208405438,-500.0,0.00027397,30]
[374106130,1753208405468,-500.0,0.00027397,30]
[374106131,1753208405494,-500.0,0.00027397,30]
[374106132,1753208405520,-500.0,0.00027397,30]
[374106133,1753208405546,-500.0,0.00027397,30]
[374106134,1753208405573,-500.0,0.00027397,30]
[374106135,1753208405598,-500.0,0.00027397,30]
[374106136,1753208405623,-500.0,0.00027397,30]
[374106137,1753208405651,-500.0,0.00027397,30]
[374106138,1753208405680,-216.9989453,0.00027397,120]
[374106139,1753208405712,-226.40282526,0.00027399,120]
[374106140,1753208405740,-457.7431759,0.000274,120]
[374106141,1753208405766,-246.05944,0.000274,120]
[374106142,1753208405794,-153.03157007,0.000274,120]
[374106143,1753208405819,-167.0,0.000274,120]
[374106144,1753208405848,-200.0,0.000274,120]
[374106145,1753208405874,-824.01411447,0.000275,30]
[374106146,1753208405900,-200.0,0.000275,120]
[374106147,1753208405927,-215.0,0.000275,60]
[374106148,1753208405959,-10149.73019877,0.000275,30]
[374106149,1753208405985,-1444.0,0.00027589,120]
[374106150,1753208406010,-499.3,0.00027658,30]
[374106151,1753208406035,-939.58292509,0.00027658,30]
[374106152,1753208406060,-500.0,0.00027658,30]
[374106153,1753208406085,-500.0,0.00027658,30]
[374106154,1753208406110,-200.0,0.000278,120]
[374106155,1753208406136,-2832.62416672,0.00028,120]
[374106156,1753208406161,-1782.98945367,0.00028,120]
[374106157,1753208406187,-250.0,0.00028,30]
[374106158,1753208406219,-200.0,0.00028,120]
[374106159,1753208406247,-257.0,0.00028,30]
[374106160,1753208406276,-2000.512183,0.00028,60]
[374106161,1753208406424,-378.47914,0.000282,120]
[374106162,1753208406460,-326.31134,0.000282,120]
[374106163,1753208406486,-200.0,0.000282,120]
[374106164,1753208406515,-791.12,0.00028397,30]
[374106165,1753208406542,-167.0,0.000285,120]
[374106166,1753208406568,-230.0004024,0.000285,120]
[374106167,1753208406594,-378.47914,0.000286,120]
[374106168,1753208406619,-326.31134,0.000286,120]
[374106169,1753208406648,-200.0,0.000286,120]
[374106170,1753208406673,-436.95928,0.000288,120]
[374106171,1753208406703,-215.0,0.000288,90]
[374106172,1753208406728,-200.0,0.00029,120]
[374106173,1753208406753,-378.47914,0.00029,120]
[374106174,1753208406777,-225.05532,0.00029,120]
[374106175,1753208406802,-326.31134,0.00029,120]
[374106176,1753208406827,-225.51643,0.00029,120]
[374106177,1753208406851,-200.0,0.00029,120]
[374106178,1753208406877,-378.47914,0.000294,120]
[374106179,1753208406902,-326.31134,0.000294,120]
[374106180,1753208406927,-200.0,0.000294,120]
[374106181,1753208406954,-667706.15246658,0.0002959,30]
[374106182,1753208406980,-541.19595,0.000296,120]
[374106183,1753208407005,-493.67907,0.000296,120]
[374106184,1753208407030,-276.00283,0.000296,120]
[374106185,1753208407056,-200.0,0.000296,120]
[374106186,1753208407082,-167.0,0.000296,120]
[374106187,1753208407107,-436.95928,0.000297,120]
[374106188,1753208407132,-378.47914,0.000298,120]
[374106189,1753208407157,-225.05532,0.000298,120]
[374106190,1753208407181,-326.31134,0.000298,120]
[374106191,1753208407209,-379.88881,0.000298,120]
[374106192,1753208407236,-2000.0,0.0003,90]
[374106193,1753208407260,-2600.0,0.0003,120]
[374106194,1753208407284,-1000.0,0.0003,120]
[374106195,1753208407307,-203.0,0.0003,30]
[374106196,1753208407331,-200.0,0.0003,120]
[374106197,1753208407355,-500.01438543,0.0003,30]
[374106198,1753208407379,-21633.75335315,0.0003,60]
[374106199,1753208407406,-220.0,0.0003,120]
[374106200,1753208407430,-229.93948648,0.0003,120]
[374106201,1753208407457,-215.0,0.0003,120]
[374106202,1753208407482,-378.47917,0.000302,120]
[374106203,1753208407508,-326.31135,0.000302,120]
[374106204,1753208407532,-167.0,0.000307,120]
[374106205,1753208407555,-2011.28491933,0.00031,120]
[374106206,1753208407580,-526.07605158,0.00031,120]
[374106207,1753208407605,-167.0,0.000318,120]
[374106208,1753208407628,-218.0,0.000318,120]
[374106209,1753208407653,-1000.0,0.00032,120]
[374106210,1753208407677,-160.8698462,0.00032,120]
[374106211,1753208407707,-1444.0,0.00032274,120]
[374106212,1753208407739,-1000.0,0.00033,120]
[374106213,1753208407765,-167.0,0.00033,120]
[374106214,1753208407791,-200.0,0.0003324,120]
[374106215,1753208407817,-200.0,0.0003324,120]
[374106216,1753208407841,-200.0,0.0003324,120]
[374106217,1753208407864,-200.0,0.0003324,120]
[374106218,1753208407889,-234.54412661,0.00033836,30]
[374106219,1753208407914,-1000.0,0.00034,120]
[374106220,1753208407940,-167.0,0.000341,120]
[374106221,1753208407972,-30398.02602598,0.0003465,30]
[374106222,1753208407997,-210.834498,0.00035,30]
[374106223,1753208408021,-500.0,0.00035,120]
[374106224,1753208408045,-3382.45954505,0.00035,120]
[374106225,1753208408069,-200.0,0.00035,120]
[374106226,1753208408093,-2524.09490669,0.00035,120]
[374106227,1753208408117,-2000.0,0.00035,120]
[374106228,1753208408141,-167.0,0.000352,120]
[374106229,1753208438612,-1869.44,0.00035791,120]
[374106230,1753208438638,-1000.0,0.00036,120]
[374106231,1753208438664,-3000.0,0.00036,120]
[374106232,1753208438689,-167.0,0.000363,120]
[374106233,1753208438713,-305.95419597,0.000365,120]
[374106234,1753208438744,-41954.33242935,0.000365,120]
[374106235,1753208438772,-3663.76684097,0.00036898,120]
[374106236,1753208438799,-167.0,0.000374,120]
[374106237,1753208438827,-12591.08614127,0.00038,120]
[374106238,1753208438855,-1000.0,0.00038,120]
[374106239,1753208438881,-3000.0,0.00038,120]
[374106240,1753208438907,-2130.57,0.000381,120]
[374106241,1753208438932,-13380.883,0.000383,120]
[374106242,1753208438958,-2475.674,0.000383,120]
[374106243,1753208438991,-179.29230182,0.00038521,120]
[374106244,1753208439017,-1869.44,0.00038531,120]
[374106245,1753208439042,-167.0,0.000386,120]
[374106246,1753208439069,-300.0,0.00039,120]
[374106247,1753208439093,-200.9941958,0.00039,120]
[374106248,1753208439117,-9999.999999,0.00039,120]
[374106249,1753208439142,-167.0,0.000397,120]
[374106250,1753208439167,-200.0,0.00039888,120]
[374106251,1753208439192,-200.0,0.00039888,120]
[374106252,1753208439216,-200.0,0.00039888,120]
[374106253,1753208439244,-200.0,0.00039888,120]
[374106254,1753208439268,-317.5572444,0.00039888,120]
[374106255,1753208439293,-1672.38405954,0.0004,120]
[374106256,1753208439317,-236.0395181,0.0004,120]
[374106257,1753208439341,-503.55562962,0.0004,120]
[374106258,1753208439366,-500.0,0.0004,120]
[374106259,1753208439390,-10124.0,0.0004,120]
[374106260,1753208439414,-15000.0,0.0004,120]
[374106261,1753208439442,-495.35083742,0.0004,120]
[374106262,1753208439469,-712.97767338,0.0004,120]
[374106263,1753208439500,-9000.91956885,0.0004,120]
[374106264,1753208439527,-999.82487713,0.0004,120]
[374106265,1753208439554,-29480.80364751,0.0004,120]
[374106266,1753208439578,-526.07605158,0.0004,120]
[374106267,1753208439602,-155.0,0.0004,120]
[374106268,1753208439627,-167.0,0.000408,120]
[374106269,1753208439651,-2340.0,0.00041,120]
[374106270,1753208439675,-5876.29,0.00041096,120]
[374106272,1753208565750,2000.0,0.00025093,30]
[374106273,1753208566084,2000.0,0.00025093,30]
[374106274,1753208566673,1016.699999,0.00025093,30]
[374106275,1753208585316,162.0,0.00024,120]
[374106276,1753208586721,162.0,0.000251,120]
[374106277,1753208691952,400.0,0.00024658,120]
[374106290,1753208874655,-189.93047499,0.00016825,2]
[374106292,1753208902377,-300.0,0.00016824,2]
[374106293,1753208902402,-14.62338929,0.00016825,2]
[374106294,1753208903943,-191.88742987,0.00016825,2]
[374106295,1753208908254,-159.38870585,0.00016825,2]
[374106296,1753208908278,-26.82443009,0.00016825,2]
[374106297,1753208910985,-186.04224788,0.00016825,2]
[374106298,1753208912510,-236.67019051,0.00016825,2]
[374106299,1753208914967,1162.90205625,0.00025134,30]
[374106300,1753208916503,244.66192407,0.00025134,30]
[374106301,1753208916533,628.60668958,0.00025134,30]
[374106302,1753208927870,403.33229422,0.00025134,120]
[374106303,1753208927963,300.0,0.00025134,30]
[374106312,1753208968520,172.472485,0.00015953,2]
[374106313,1753208999497,-219.3784528,0.00016803,2]
[374106314,1753208999857,742.02828153,0.00024658,120]
[374106315,1753209001115,-235.5873645,0.00016803,2]
[374106316,1753209004285,-276.78345802,0.00016803,2]
[374106317,1753209005841,-162.17406944,0.00016803,2]
[374106319,1753209014008,502.956118,0.00013699,2]
[374106780,1753209038495,-300.0,0.00016824,2]
[374106781,1753209038507,-300.0,0.00016824,2]
[374106782,1753209038516,-1200.0,0.00016824,2]
[374106783,1753209038525,-8067.60262263,0.00016825,2]
[374106784,1753209038602,-41932.39737737,0.00016825,2]
[374106785,1753209038614,-460.0,0.00016825,2]
[374106786,1753209038623,-460.0,0.00016825,2]
[374106787,1753209038634,-460.0,0.00016825,2]
[374106788,1753209038643,-460.0,0.00016825,2]
[374106790,1753209038655,-750.0,0.00016825,2]
[374106792,1753209038665,-460.0,0.00016825,2]
[374106793,1753209038675,-460.0,0.00016825,2]
[374106796,1753209038685,-699.21,0.00016825,2]
[374106798,1753209038694,-460.0,0.00016825,2]
[374106800,1753209038705,-189.93047499,0.00016825,2]
[374106802,1753209038715,-460.0,0.00016825,2]
[374106803,1753209038725,-460.0,0.00016825,2]
[374106806,1753209038735,-460.0,0.00016825,2]
[374106808,1753209038744,-460.0,0.00016825,2]
[374106810,1753209038756,-777.53,0.00016825,2]
[374106812,1753209038766,-460.0,0.00016825,2]
[374106814,1753209038775,-565.03141817,0.00016825,2]
[374106816,1753209038784,-460.0,0.00016825,2]
[374106818,1753209038793,-460.0,0.00016825,2]
[374106819,1753209038803,-460.0,0.00016825,2]
[374106821,1753209038812,-460.0,0.00016825,2]
[374106823,1753209038822,-460.0,0.00016825,2]
[374106825,1753209038831,-777.63,0.00016825,2]
[374106827,1753209038840,-745.24,0.00016825,2]
[374106829,1753209038850,-460.0,0.00016825,2]
[374106831,1753209038860,-460.0,0.00016825,2]
[374106833,1753209038870,-460.0,0.00016825,2]
[374106835,1753209038880,-460.0,0.00016825,2]
[374106837,1753209038889,-198.1229008,0.00016825,2]
[374106839,1753209038899,-460.0,0.00016825,2]
[374106841,1753209038909,-460.0,0.00016825,2]
[374106843,1753209038918,-460.0,0.00016825,2]
[374106845,1753209038927,-177.48005639,0.00016825,2]
[374106847,1753209038936,-529.29181627,0.00016825,2]
[374106849,1753209038945,-460.0,0.00016826,2]
[374106851,1753209038955,-460.0,0.00016826,2]
[374106853,1753209038964,-370.62168657,0.00016826,2]
[374106855,1753209038973,-460.0,0.00016826,2]
[374106857,1753209038982,-460.0,0.00016826,2]
[374106859,1753209038992,-237.41573751,0.00016826,2]
[374106861,1753209039001,-460.0,0.00016826,2]
[374106863,1753209039012,-460.0,0.00016826,2]
[374106865,1753209039022,-460.0,0.00016826,2]
[374106867,1753209039031,-460.0,0.00016826,2]
[374106869,1753209039040,-460.0,0.00016826,2]
[374106871,1753209039049,-460.0,0.00016826,2]
[374106872,1753209039059,-462.11523564,0.00016826,2]
[374106873,1753209039068,-460.0,0.00016826,2]
[374106874,1753209039077,-460.0,0.00016826,2]
[374106875,1753209039087,-215.10205148,0.00016826,2]
[374106876,1753209039096,-201.32219026,0.00016826,2]
[374106877,1753209039106,-460.0,0.00016826,2]
[374106878,1753209039115,-460.0,0.00016826,2]
[374106879,1753209039126,-460.0,0.00016826,2]
[374106880,1753209039135,-464.52954203,0.00016826,2]
[374106881,1753209039144,-460.0,0.00016826,2]
[374106882,1753209039154,-460.0,0.00016826,2]
[374106883,1753209039163,-460.0,0.00016826,2]
[374106884,1753209039172,-460.0,0.00016826,2]
[374106885,1753209039182,-460.0,0.00016826,2]
[374106886,1753209039191,-460.0,0.00016826,2]
[374106887,1753209039201,-569.52,0.00016826,2]
[374106888,1753209039210,-460.0,0.00016826,2]
[374106889,1753209039219,-460.0,0.00016826,2]
[374106890,1753209039228,-500.0,0.00016826,2]
[374106891,1753209039238,-500.0,0.00016826,2]
[374106892,1753209039247,-460.0,0.00016826,2]
[374106893,1753209039259,-339.08,0.00016826,2]
[374106894,1753209039269,-460.0,0.00016826,2]
[374106895,1753209039367,-521.88,0.00016826,2]
[374106896,1753209039407,-562.05097252,0.00016826,2]
[374106897,1753209039417,-460.0,0.00016826,2]
[374106898,1753209039427,-460.0,0.00016826,2]
[374106899,1753209039438,-460.0,0.00016826,2]
[374106900,1753209039447,-460.0,0.00016826,2]
[374106901,1753209039457,-460.0,0.00016826,2]
[374106902,1753209039467,-460.0,0.00016826,2]
[374106903,1753209039476,-460.0,0.00016826,2]
[374106904,1753209039485,-460.0,0.00016826,2]
[374106905,1753209039495,-460.0,0.00016826,2]
[374106906,1753209039507,-460.0,0.00016826,2]
[374106907,1753209039516,-460.0,0.00016826,2]
[374106908,1753209039526,-460.0,0.00016826,2]
[374106909,1753209039535,-460.0,0.00016826,2]
[374106910,1753209039544,-460.0,0.00016826,2]
[374106911,1753209039554,-460.0,0.00016826,2]
[374106912,1753209039564,-460.0,0.00016826,2]
[374106913,1753209039577,-460.0,0.00016826,2]
[374106914,1753209039587,-460.0,0.00016826,2]
[374106915,1753209039597,-460.0,0.00016826,2]
[374106916,1753209039607,-460.0,0.00016826,2]
[374106917,1753209039616,-460.0,0.00016826,2]
[374106918,1753209039626,-460.0,0.00016826,2]
[374106919,1753209039635,-460.0,0.00016826,2]
[374106920,1753209039644,-482.09245914,0.00016826,2]
[374106921,1753209039655,-460.0,0.00016826,2]
[374106922,1753209039664,-461.28928091,0.00016826,2]
[374106923,1753209039674,-460.0,0.00016826,2]
[374106924,1753209039683,-460.0,0.00016826,2]
[374106925,1753209039692,-460.0,0.00016826,2]
[374106926,1753209039701,-460.0,0.00016826,2]
[374106927,1753209039711,-460.0,0.00016826,2]
[374106928,1753209039720,-460.0,0.00016826,2]
[374106929,1753209039729,-460.0,0.00016826,2]
[374106930,1753209039739,-460.0,0.00016826,2]
[374106931,1753209039749,-460.0,0.00016826,2]
[374106932,1753209039760,-460.0,0.00016826,2]
[374106933,1753209039770,-460.0,0.00016826,2]
[374106934,1753209039779,-460.0,0.00016826,2]
[374106935,1753209039789,-460.39637007,0.00016826,2]
[374106936,1753209039798,-463.16853558,0.00016826,2]
[374106937,1753209039808,-460.0,0.00016826,2]
[374106938,1753209039817,-460.0,0.00016826,2]
[374106939,1753209039826,-460.0,0.00016826,2]
[374106940,1753209039836,-460.0,0.00016826,2]
[374106941,1753209039845,-460.0,0.00016826,2]
[374106942,1753209039855,-460.0,0.00016826,2]
[374106943,1753209039865,-460.0,0.00016826,2]
[374106944,1753209039874,-460.0,0.00016826,2]
[374106945,1753209039883,-460.0,0.00016826,2]
[374106946,1753209039892,-460.0,0.00016826,2]
[374106947,1753209039901,-460.0,0.00016826,2]
[374106948,1753209039910,-460.0,0.00016826,2]
[374106949,1753209039919,-160.0,0.00016826,2]
[374106950,1753209039929,-460.0,0.00016827,2]
[374106951,1753209039938,-460.0,0.00016827,2]
[374106952,1753209039947,-460.0,0.00016827,2]
[374106953,1753209039956,-460.0,0.00016827,2]
[374106954,1753209039966,-460.0,0.00016827,2]
[374106955,1753209039975,-460.0,0.00016827,2]
[374106956,1753209039985,-460.0,0.00016827,2]
[374106957,1753209039994,-460.0,0.00016827,2]
[374106958,1753209040007,-460.0,0.00016827,2]
[374106959,1753209040016,-460.0,0.00016827,2]
[374106960,1753209040025,-460.0,0.00016827,2]
[374106962,1753209040034,-460.0,0.00016827,2]
[374106963,1753209040044,-460.0,0.00016827,2]
[374106964,1753209040053,-460.0,0.00016827,2]
[374106965,1753209040062,-460.0,0.00016827,2]
[374106966,1753209040072,-460.0,0.00016827,2]
[374106967,1753209040081,-500.0,0.00016827,2]
[374106969,1753209040090,-460.0,0.00016827,2]
[374106970,1753209040100,-460.0,0.00016827,2]
[374106971,1753209040110,-460.0,0.00016827,2]
[374106972,1753209040119,-460.0,0.00016827,2]
[374106973,1753209040129,-460.0,0.00016827,2]
[374106975,1753209040138,-460.0,0.00016827,2]
[374106977,1753209040147,-460.0,0.00016827,2]
[374106978,1753209040156,-460.0,0.00016827,2]
[374106980,1753209040166,-460.0,0.00016827,2]
[374106983,1753209040175,-500.0,0.00016827,2]
[374106985,1753209040185,-500.0,0.00016827,2]
[374106987,1753209040195,-461.25962004,0.00016827,2]
[374106989,1753209040204,-460.0,0.00016827,2]
[374106991,1753209040213,-460.0,0.00016827,2]
[374106993,1753209040223,-460.0,0.00016827,2]
[374106994,1753209040232,-460.0,0.00016827,2]
[374106996,1753209040241,-500.0,0.00016827,2]
[374106998,1753209040250,-460.0,0.00016827,2]
[374107000,1753209040261,-500.0,0.00016827,2]
[374107002,1753209040271,-500.0,0.00016827,2]
[374107005,1753209040282,-460.0,0.00016827,2]
[374107007,1753209040291,-460.0,0.00016827,2]
[374107009,1753209040302,-460.0,0.00016827,2]
[374107011,1753209040314,-672.36,0.00016828,2]
[374107013,1753209040323,-460.0,0.00016828,2]
[374107015,1753209040332,-485.42774486,0.00016828,2]
[374107017,1753209040342,-460.0,0.00016828,2]
[374107019,1753209040352,-535.45468775,0.00016828,2]
[374107021,1753209040361,-460.0,0.00016828,2]
[374107023,1753209040371,-460.71413138,0.00016828,2]
[374107025,1753209040380,-460.0,0.00016828,2]
[374107027,1753209040390,-460.0,0.00016828,2]
[374107029,1753209040399,-460.0,0.00016828,2]
[374107031,1753209040409,-460.0,0.00016828,2]
[374107033,1753209040418,-460.0,0.00016828,2]
[374107035,1753209040427,-460.0,0.00016828,2]
[374107037,1753209040437,-460.0,0.00016828,2]
[374107039,1753209040446,-460.0,0.00016828,2]
[374107041,1753209040455,-460.0,0.00016828,2]
[374107043,1753209040465,-460.0,0.00016828,2]
[374107045,1753209040474,-460.0,0.00016828,2]
[374107047,1753209040482,-460.0,0.00016828,2]
[374107049,1753209040491,-460.0,0.00016828,2]
[374107051,1753209040501,-500.0,0.00016828,2]
[374107053,1753209040513,-460.0,0.00016828,2]
[374107055,1753209040522,-460.0,0.00016828,2]
[374107056,1753209040531,-460.0,0.00016828,2]
[374107058,1753209040540,-460.0,0.00016828,2]
[374107060,1753209040550,-474.37,0.00016828,2]
[374107063,1753209040560,-460.0,0.00016828,2]
[374107065,1753209040571,-460.0,0.00016828,2]
[374107066,1753209040582,-460.0,0.00016828,2]
[374107069,1753209040592,-460.0,0.00016828,2]
[374107072,1753209040602,-460.0,0.00016828,2]
[374107075,1753209040611,-460.0,0.00016828,2]
[374107078,1753209040622,-461.840671,0.00016828,2]
[374107081,1753209040631,-460.0,0.00016828,2]
[374107084,1753209040641,-460.0,0.00016828,2]
[374107087,1753209040651,-460.0,0.00016828,2]
[374107089,1753209040660,-460.0,0.00016828,2]
[374107092,1753209040670,-460.0,0.00016828,2]
[374107096,1753209040681,-460.0,0.00016828,2]
[374107100,1753209040694,-460.0,0.00016828,2]
[374107104,1753209040711,-460.0,0.00016828,2]
[374107108,1753209040723,-460.0,0.00016828,2]
[374107111,1753209040735,-460.0,0.00016828,2]
[374107115,1753209040747,-460.0,0.00016828,2]
[374107118,1753209040762,-460.0,0.00016828,2]
[374107121,1753209040773,-460.0,0.00016828,2]
[374107124,1753209040783,-460.0,0.00016828,2]
[374107128,1753209040796,-461.50811901,0.00016828,2]
[374107132,1753209040808,-460.0,0.00016828,2]
[374107135,1753209040819,-460.0,0.00016828,2]
[374107138,1753209040830,-460.0,0.00016828,2]
[374107141,1753209040842,-500.0,0.00016828,2]
[374107145,1753209040854,-666.71,0.00016828,2]
[374107149,1753209040867,-460.0,0.00016828,2]
[374107151,1753209040880,-460.0,0.00016828,2]
[374107153,1753209040891,-460.0,0.00016828,2]
[374107156,1753209040903,-460.0,0.00016828,2]
[374107158,1753209040915,-162.53147297,0.00016828,2]
[374107160,1753209040927,-460.0,0.00016828,2]
[374107162,1753209040940,-460.0,0.00016828,2]
[374107165,1753209040951,-460.0,0.00016828,2]
[374107167,1753209040962,-460.0,0.00016828,2]
[374107168,1753209040984,-460.0,0.00016828,2]
[374107169,1753209040998,-461.19228393,0.00016828,2]
[374107170,1753209041019,-460.0,0.00016828,2]
[374107171,1753209041032,-460.0,0.00016828,2]
[374107172,1753209041045,-500.0,0.00016828,2]
[374107173,1753209041059,-594.02,0.00016828,2]
[374107174,1753209041072,-461.85278746,0.00016828,2]
[374107175,1753209041085,-305.25448484,0.00016829,2]
[374107176,1753209041099,-500.0,0.00016829,2]
[374107177,1753209041110,-363.2836694,0.00016829,2]
[374107178,1753209041122,-500.0,0.00016829,2]
[374107179,1753209041134,-500.0,0.00016829,2]
[374107180,1753209041145,-500.0,0.00016829,2]
[374107181,1753209041156,-500.0,0.00016829,2]
[374107182,1753209041166,-500.0,0.00016829,2]
[374107183,1753209041178,-500.0,0.00016829,2]
[374107184,1753209041190,-500.0,0.00016829,2]
[374107185,1753209041200,-500.0,0.00016829,2]
[374107186,1753209041212,-277.81354632,0.00016829,2]
[374107187,1753209041224,-500.0,0.00016829,2]
[374107188,1753209041236,-500.0,0.00016829,2]
[374107190,1753209041248,-500.0,0.00016829,2]
[374107192,1753209041262,-500.0,0.00016829,2]
[374107194,1753209041273,-227.28539256,0.00016829,2]
[374107195,1753209041286,-500.0,0.00016829,2]
[374107196,1753209041298,-500.0,0.00016829,2]
[374107197,1753209041310,-500.0,0.00016829,2]
[374107198,1753209041325,-500.0,0.00016829,2]
[374107199,1753209041336,-500.0,0.00016829,2]
[374107200,1753209041350,-500.0,0.00016829,2]
[374107201,1753209041363,-500.0,0.00016829,2]
[374107202,1753209041373,-500.0,0.00016829,2]
[374107203,1753209041384,-500.0,0.00016829,2]
[374107204,1753209041394,-500.0,0.00016829,2]
[374107205,1753209041404,-500.0,0.00016829,2]
[374107206,1753209041414,-500.0,0.00016829,2]
[374107207,1753209041425,-404.38894832,0.00016829,2]